[Event "Titled Tuesday Blitz June 1 2021"]
[White "Dang, Hoang Son"]
[Black "Hansen, Eric"]
[WhiteFideId "12402435"]
[BlackFideId "2606771"]
[WhiteElo "2248"]
[BlackElo "2568"]
[Result "0-1"]
[Round "07"]
[TimeControl "180+1"]
[Date "2021.06.01"]
[WhiteClock "0:00:04"]
[BlackClock "0:00:06"]

1. d4 {[%clk 0:03:00]}  Nf6 {[%clk 0:02:58]} 2. c4 {[%clk 0:03:01]}  e6 {[%clk 0:02:59]} 3. Nf3 {[%clk 0:03:01]}  b6 {[%clk 0:02:57]} 4. g3 {[%clk 0:03:02]}  Ba6 {[%clk 0:02:57]} 5. Qa4 {[%clk 0:03:02]}  Bb7 {[%clk 0:02:52]} 6. Bg2 {[%clk 0:03:02]}  c5 {[%clk 0:02:51]} 7. O-O {[%clk 0:03:02]}  Qc7 {[%clk 0:02:36]} 8. Bf4 {[%clk 0:02:51]}  Qc6 {[%clk 0:02:24]} 9. Qxc6 {[%clk 0:02:35]}  Nxc6 {[%clk 0:02:24]} 10. dxc5 {[%clk 0:02:25]}  Bxc5 {[%clk 0:02:08]} 11. Nc3 {[%clk 0:02:25]}  Ke7 {[%clk 0:01:26]} 12. a3 {[%clk 0:02:19]}  a5 {[%clk 0:01:25]} 13. Na4 {[%clk 0:02:19]}  d6 {[%clk 0:01:04]} 14. Rac1 {[%clk 0:02:04]}  Rhd8 {[%clk 0:00:59]} 15. Rfd1 {[%clk 0:02:03]}  h6 {[%clk 0:00:57]} 16. Bd2 {[%clk 0:01:48]}  Ne4 {[%clk 0:00:51]} 17. Be1 {[%clk 0:01:47]}  f5 {[%clk 0:00:45]} 18. e3 {[%clk 0:01:41]}  g5 {[%clk 0:00:26]} 19. Nd4 {[%clk 0:01:34]}  g4 {[%clk 0:00:25]} 20. Nb5 {[%clk 0:01:25]}  Ne5 {[%clk 0:00:24]} 21. b3 {[%clk 0:00:59]}  Bc6 {[%clk 0:00:17]} 22. Ra1 {[%clk 0:00:46]}  Bxb5 {[%clk 0:00:15]} 23. cxb5 {[%clk 0:00:47]}  d5 {[%clk 0:00:14]} 24. b4 {[%clk 0:00:44]}  axb4 {[%clk 0:00:14]} 25. axb4 {[%clk 0:00:45]}  Bd6 {[%clk 0:00:15]} 26. Nxb6 {[%clk 0:00:44]}  Rab8 {[%clk 0:00:15]} 27. Ra7+ {[%clk 0:00:43]}  Kf6 {[%clk 0:00:15]} 28. Ra6 {[%clk 0:00:42]}  Nf3+ {[%clk 0:00:13]} 29. Kf1 {[%clk 0:00:35]}  Rb7 {[%clk 0:00:10]} 30. Ke2 {[%clk 0:00:29]}  Rdb8 {[%clk 0:00:09]} 31. Na4 {[%clk 0:00:23]}  Rxb5 {[%clk 0:00:06]} 32. Nc3 {[%clk 0:00:24]}  Nxc3+ {[%clk 0:00:04]} 33. Bxc3+ {[%clk 0:00:23]}  Be5 {[%clk 0:00:05]} 34. Bxe5+ {[%clk 0:00:17]}  Nxe5 {[%clk 0:00:05]} 35. Bxd5 {[%clk 0:00:17]}  R5b6 {[%clk 0:00:06]} 36. Rxb6 {[%clk 0:00:13]}  Rxb6 {[%clk 0:00:06]} 37. Bg2 {[%clk 0:00:09]}  Rxb4 {[%clk 0:00:07]} 38. Rd2 {[%clk 0:00:10]}  Nc4 {[%clk 0:00:07]} 39. Rc2 {[%clk 0:00:10]}  Ke5 {[%clk 0:00:08]} 40. h3 {[%clk 0:00:09]}  h5 {[%clk 0:00:08]} 41. hxg4 {[%clk 0:00:10]}  hxg4 {[%clk 0:00:09]} 42. Ra2 {[%clk 0:00:09]}  Nb2 {[%clk 0:00:06]} 43. Kd2 {[%clk 0:00:08]}  Na4 {[%clk 0:00:06]} 44. Bf1 {[%clk 0:00:07]}  Nc5 {[%clk 0:00:05]} 45. Kc3 {[%clk 0:00:06]}  Rb6 {[%clk 0:00:05]} 46. Ra5 {[%clk 0:00:05]}  Kd6 {[%clk 0:00:05]} 47. Kc4 {[%clk 0:00:03]}  Ne4 {[%clk 0:00:05]} 48. Ra2 {[%clk 0:00:04]}  Ke5 {[%clk 0:00:04]} 49. Bg2 {[%clk 0:00:04]}  Nf6 {[%clk 0:00:02]} 50. Kc5 {[%clk 0:00:04]}  Rb1 {[%clk 0:00:02]} 51. Kc4 {[%clk 0:00:04]}  Rc1+ {[%clk 0:00:02]} 52. Kd3 {[%clk 0:00:04]}  Rc5 {[%clk 0:00:03]} 53. Kd2 {[%clk 0:00:04]}  Kd6 {[%clk 0:00:03]} 54. Ra6+ {[%clk 0:00:04]}  Ke7 {[%clk 0:00:04]} 55. Ke2 {[%clk 0:00:04]}  Nd7 {[%clk 0:00:04]} 56. Kd2 {[%clk 0:00:04]}  Ne5 {[%clk 0:00:04]} 57. Ra7+ {[%clk 0:00:04]}  Kf6 {[%clk 0:00:05]} 58. Bf1 {[%clk 0:00:05]}  Nf3+ {[%clk 0:00:05]} 59. Kd1 {[%clk 0:00:04]}  Rd5+ {[%clk 0:00:05]} 60. Kc1 {[%clk 0:00:05]}  Rd2 {[%clk 0:00:05]} 61. Bc4 {[%clk 0:00:05]}  Rxf2 {[%clk 0:00:05]} 62. Ra6 {[%clk 0:00:05]}  Ng5 {[%clk 0:00:05]} 63. Kd1 {[%clk 0:00:05]}  Rf3 {[%clk 0:00:06]} 64. Ke2 {[%clk 0:00:05]}  Rxg3 {[%clk 0:00:06]} 65. Bd5 {[%clk 0:00:04]}  Rh3 {[%clk 0:00:06]} 66. Kf2 {[%clk 0:00:04]}  Ke5 {[%clk 0:00:06]} 67. Bc4 {[%clk 0:00:04]}  Rh2+ {[%clk 0:00:06]} 68. Kg3 {[%clk 0:00:04]}  Rc2 {[%clk 0:00:07]} 69. Ra5+ {[%clk 0:00:04]}  Kf6 {[%clk 0:00:07]} 70. Ba2 {[%clk 0:00:03]}  Ne4+ {[%clk 0:00:06]} 71. Kf4 {[%clk 0:00:04]}  Rf2# {[%clk 0:00:06]} 0-1


[Site "https://www.chess.com"]

[Event "Titled Tuesday Blitz June 1 2021"]
[White "Enchev, Ivajlo"]
[Black "Nandhidhaa, P V"]
[WhiteFideId "2907712"]
[BlackFideId "5050847"]
[WhiteElo "2452"]
[BlackElo "1989"]
[Result "1-0"]
[Round "07"]
[TimeControl "180+1"]
[Date "2021.06.01"]
[WhiteClock "0:01:06"]
[BlackClock "0:00:56"]

1. e4 {[%clk 0:03:00]}  c5 {[%clk 0:02:59]} 2. Nf3 {[%clk 0:03:00]}  e6 {[%clk 0:03:00]} 3. b3 {[%clk 0:02:59]}  Nc6 {[%clk 0:02:58]} 4. Bb2 {[%clk 0:02:58]}  a6 {[%clk 0:02:57]} 5. c4 {[%clk 0:02:57]}  Nf6 {[%clk 0:02:57]} 6. Nc3 {[%clk 0:02:57]}  d6 {[%clk 0:02:51]} 7. Bd3 {[%clk 0:02:57]}  Be7 {[%clk 0:02:50]} 8. O-O {[%clk 0:02:56]}  O-O {[%clk 0:02:51]} 9. Re1 {[%clk 0:02:53]}  e5 {[%clk 0:02:50]} 10. h3 {[%clk 0:02:48]}  Nh5 {[%clk 0:02:45]} 11. Nd5 {[%clk 0:02:46]}  Nf4 {[%clk 0:02:36]} 12. Nxf4 {[%clk 0:02:43]}  exf4 {[%clk 0:02:36]} 13. Qe2 {[%clk 0:02:22]}  Bf6 {[%clk 0:02:33]} 14. Bc3 {[%clk 0:02:08]}  Nd4 {[%clk 0:02:16]} 15. Bxd4 {[%clk 0:02:06]}  cxd4 {[%clk 0:02:14]} 16. e5 {[%clk 0:01:41]}  dxe5 {[%clk 0:02:11]} 17. Nxe5 {[%clk 0:01:42]}  Re8 {[%clk 0:02:00]} 18. Bxh7+ {[%clk 0:01:37]}  Kxh7 {[%clk 0:01:50]} 19. Qh5+ {[%clk 0:01:33]}  Kg8 {[%clk 0:01:48]} 20. Qxf7+ {[%clk 0:01:32]}  Kh7 {[%clk 0:01:48]} 21. Qg6+ {[%clk 0:01:25]}  Kg8 {[%clk 0:01:47]} 22. Nf7 {[%clk 0:01:22]}  Rxe1+ {[%clk 0:01:43]} 23. Rxe1 {[%clk 0:01:23]}  Qf8 {[%clk 0:01:18]} 24. Nh6+ {[%clk 0:01:20]}  Kh8 {[%clk 0:01:18]} 25. Re8 {[%clk 0:01:18]}  Be6 {[%clk 0:01:15]} 26. Rxe6 {[%clk 0:01:12]}  d3 {[%clk 0:00:57]} 27. Nf7+ {[%clk 0:01:08]}  Kg8 {[%clk 0:00:56]} 28. Rxf6 {[%clk 0:01:06]} 1-0


[Site "https://www.chess.com"]

[Event "Titled Tuesday Blitz June 1 2021"]
[White "Eugene, Floryan"]
[Black "Aditya Mittal"]
[WhiteFideId "20694784"]
[BlackFideId "35042025"]
[WhiteElo "2531"]
[BlackElo "2171"]
[Result "0-1"]
[Round "07"]
[TimeControl "180+1"]
[Date "2021.06.01"]
[WhiteClock "0:00:02"]
[BlackClock "0:00:05"]

1. e4 {[%clk 0:03:00]}  c5 {[%clk 0:03:00]} 2. Nf3 {[%clk 0:03:00]}  d6 {[%clk 0:03:00]} 3. d4 {[%clk 0:03:00]}  cxd4 {[%clk 0:03:01]} 4. Nxd4 {[%clk 0:03:00]}  Nf6 {[%clk 0:03:02]} 5. Nc3 {[%clk 0:03:01]}  a6 {[%clk 0:03:03]} 6. Be3 {[%clk 0:03:01]}  e5 {[%clk 0:03:03]} 7. Nb3 {[%clk 0:03:00]}  Be7 {[%clk 0:03:04]} 8. h3 {[%clk 0:03:01]}  Be6 {[%clk 0:02:57]} 9. g4 {[%clk 0:02:57]}  b5 {[%clk 0:02:53]} 10. g5 {[%clk 0:02:57]}  Nfd7 {[%clk 0:02:51]} 11. h4 {[%clk 0:02:55]}  Nb6 {[%clk 0:02:47]} 12. Qf3 {[%clk 0:02:54]}  N8d7 {[%clk 0:02:42]} 13. Nd5 {[%clk 0:02:42]}  Bxd5 {[%clk 0:02:26]} 14. exd5 {[%clk 0:02:42]}  Rc8 {[%clk 0:02:26]} 15. c3 {[%clk 0:02:14]}  Na4 {[%clk 0:02:17]} 16. O-O-O {[%clk 0:01:53]}  Qc7 {[%clk 0:01:47]} 17. Bd2 {[%clk 0:01:33]}  O-O {[%clk 0:01:29]} 18. Bd3 {[%clk 0:01:31]}  b4 {[%clk 0:01:23]} 19. Qe4 {[%clk 0:01:27]}  f5 {[%clk 0:01:06]} 20. gxf6 {[%clk 0:01:22]}  Nxf6 {[%clk 0:01:07]} 21. Qxb4 {[%clk 0:01:21]}  Nb6 {[%clk 0:01:00]} 22. Rdg1 {[%clk 0:01:05]}  Nbxd5 {[%clk 0:00:55]} 23. Qa4 {[%clk 0:01:04]}  Kh8 {[%clk 0:00:48]} 24. h5 {[%clk 0:01:01]}  Qb6 {[%clk 0:00:42]} 25. Rg2 {[%clk 0:00:50]}  Nb4 {[%clk 0:00:36]} 26. Bb1 {[%clk 0:00:48]}  Rc4 {[%clk 0:00:31]} 27. Qa5 {[%clk 0:00:44]}  Qc6 {[%clk 0:00:27]} 28. Rhg1 {[%clk 0:00:40]}  Bd8 {[%clk 0:00:23]} 29. Qa3 {[%clk 0:00:38]}  Rg8 {[%clk 0:00:16]} 30. Na5 {[%clk 0:00:29]}  Bxa5 {[%clk 0:00:09]} 31. Qxa5 {[%clk 0:00:30]}  Ne4 {[%clk 0:00:08]} 32. Rxg7 {[%clk 0:00:26]}  Rc8 {[%clk 0:00:03]} 33. f3 {[%clk 0:00:14]}  Nf6 {[%clk 0:00:02]} 34. a3 {[%clk 0:00:10]}  Nbd5 {[%clk 0:00:02]} 35. Bd3 {[%clk 0:00:08]}  Rc5 {[%clk 0:00:03]} 36. Qxa6 {[%clk 0:00:08]}  Qe8 {[%clk 0:00:02]} 37. h6 {[%clk 0:00:07]}  Qf8 {[%clk 0:00:02]} 38. Bg5 {[%clk 0:00:07]}  e4 {[%clk 0:00:01]} 39. fxe4 {[%clk 0:00:07]}  Nxc3 {[%clk 0:00:02]} 40. Bxf6 {[%clk 0:00:06]}  Qxf6 {[%clk 0:00:02]} 41. Rxh7+ {[%clk 0:00:07]}  Kxh7 {[%clk 0:00:02]} 42. e5+ {[%clk 0:00:07]}  Ne4+ {[%clk 0:00:02]} 43. Kb1 {[%clk 0:00:04]}  Qxe5 {[%clk 0:00:02]} 44. Qb7+ {[%clk 0:00:04]}  R5c7 {[%clk 0:00:03]} 45. Qxe4+ {[%clk 0:00:05]}  Qxe4 {[%clk 0:00:03]} 46. Bxe4+ {[%clk 0:00:05]}  Kxh6 {[%clk 0:00:04]} 47. Rg6+ {[%clk 0:00:05]}  Kh5 {[%clk 0:00:05]} 48. Rxd6 {[%clk 0:00:06]}  Rc1+ {[%clk 0:00:05]} 49. Ka2 {[%clk 0:00:07]}  Kg5 {[%clk 0:00:06]} 50. Bd5 {[%clk 0:00:07]}  Kf4 {[%clk 0:00:04]} 51. Bb3 {[%clk 0:00:07]}  Ke5 {[%clk 0:00:05]} 52. Rd5+ {[%clk 0:00:07]}  Ke4 {[%clk 0:00:05]} 53. a4 {[%clk 0:00:08]}  R1c5 {[%clk 0:00:05]} 54. Rxc5 {[%clk 0:00:08]}  Rxc5 {[%clk 0:00:05]} 55. Ka3 {[%clk 0:00:09]}  Rc8 {[%clk 0:00:05]} 56. Kb4 {[%clk 0:00:09]}  Kd4 {[%clk 0:00:05]} 57. Bd1 {[%clk 0:00:07]}  Rb8+ {[%clk 0:00:06]} 58. Ka3 {[%clk 0:00:07]}  Kc5 {[%clk 0:00:06]} 59. Be2 {[%clk 0:00:07]}  Rb4 {[%clk 0:00:06]} 60. Bd3 {[%clk 0:00:06]}  Rd4 {[%clk 0:00:06]} 61. Bb5 {[%clk 0:00:06]}  Re4 {[%clk 0:00:06]} 62. b3 {[%clk 0:00:06]}  Re3 {[%clk 0:00:05]} 63. Bd7 {[%clk 0:00:07]}  Rg3 {[%clk 0:00:05]} 64. a5 {[%clk 0:00:07]}  Re3 {[%clk 0:00:05]} 65. Ka4 {[%clk 0:00:06]}  Re4+ {[%clk 0:00:05]} 66. Ka3 {[%clk 0:00:05]}  Rd4 {[%clk 0:00:04]} 67. Bf5 {[%clk 0:00:05]}  Kb5 {[%clk 0:00:04]} 68. Bd7+ {[%clk 0:00:01]}  Rxd7 {[%clk 0:00:04]} 69. b4 {[%clk 0:00:01]}  Rd3+ {[%clk 0:00:04]} 70. Kb2 {[%clk 0:00:02]}  Kxb4 {[%clk 0:00:05]} 0-1


[Site "https://www.chess.com"]

[Event "Titled Tuesday Blitz June 1 2021"]
[White "Fedoseev, Vladimir"]
[Black "Sumets, Andrey"]
[WhiteFideId "24130737"]
[BlackFideId "14105500"]
[WhiteElo "2756"]
[BlackElo "2619"]
[Result "1-0"]
[Round "07"]
[TimeControl "180+1"]
[Date "2021.06.01"]
[WhiteClock "0:00:44"]
[BlackClock "0:00:04"]

1. e4 {[%clk 0:03:00]}  e6 {[%clk 0:02:59]} 2. d4 {[%clk 0:02:57]}  d5 {[%clk 0:02:59]} 3. Nc3 {[%clk 0:02:56]}  Nf6 {[%clk 0:02:59]} 4. Bg5 {[%clk 0:02:54]}  dxe4 {[%clk 0:02:58]} 5. Nxe4 {[%clk 0:02:53]}  Nbd7 {[%clk 0:02:59]} 6. Nf3 {[%clk 0:02:52]}  h6 {[%clk 0:02:53]} 7. Nxf6+ {[%clk 0:02:52]}  Nxf6 {[%clk 0:02:53]} 8. Be3 {[%clk 0:02:52]}  Bd6 {[%clk 0:02:48]} 9. Bd3 {[%clk 0:02:48]}  O-O {[%clk 0:02:47]} 10. c4 {[%clk 0:02:40]}  b6 {[%clk 0:02:47]} 11. c5 {[%clk 0:02:25]}  Be7 {[%clk 0:02:38]} 12. Ne5 {[%clk 0:02:24]}  Bb7 {[%clk 0:02:36]} 13. c6 {[%clk 0:02:23]}  Bb4+ {[%clk 0:02:08]} 14. Kf1 {[%clk 0:02:18]}  Bc8 {[%clk 0:02:06]} 15. h4 {[%clk 0:02:17]}  Bd6 {[%clk 0:02:04]} 16. Rh3 {[%clk 0:02:13]}  Nd5 {[%clk 0:02:01]} 17. Qh5 {[%clk 0:01:55]}  Bxe5 {[%clk 0:01:48]} 18. Qxe5 {[%clk 0:01:50]}  f6 {[%clk 0:01:25]} 19. Qh5 {[%clk 0:01:43]}  Nxe3+ {[%clk 0:01:23]} 20. fxe3 {[%clk 0:01:41]}  Qe8 {[%clk 0:01:19]} 21. Qf3 {[%clk 0:01:35]}  a5 {[%clk 0:01:15]} 22. Kg1 {[%clk 0:01:22]}  Ba6 {[%clk 0:01:09]} 23. Bc2 {[%clk 0:01:22]}  Rd8 {[%clk 0:01:03]} 24. Rg3 {[%clk 0:01:20]}  Rd6 {[%clk 0:00:55]} 25. Qf4 {[%clk 0:01:09]}  Kh8 {[%clk 0:00:50]} 26. Be4 {[%clk 0:01:03]}  Bb5 {[%clk 0:00:45]} 27. Rc1 {[%clk 0:00:57]}  Bxc6 {[%clk 0:00:41]} 28. Qg4 {[%clk 0:00:58]}  Rg8 {[%clk 0:00:36]} 29. Bg6 {[%clk 0:00:53]}  Qe7 {[%clk 0:00:32]} 30. Bd3 {[%clk 0:00:52]}  f5 {[%clk 0:00:27]} 31. Qf4 {[%clk 0:00:53]}  Bd5 {[%clk 0:00:26]} 32. Rg6 {[%clk 0:00:52]}  e5 {[%clk 0:00:21]} 33. Qxf5 {[%clk 0:00:51]}  Rf8 {[%clk 0:00:17]} 34. Rxc7 {[%clk 0:00:45]}  Rxf5 {[%clk 0:00:10]} 35. Rxe7 {[%clk 0:00:45]}  Rxg6 {[%clk 0:00:09]} 36. Bxf5 {[%clk 0:00:46]}  Rxg2+ {[%clk 0:00:09]} 37. Kf1 {[%clk 0:00:47]}  g6 {[%clk 0:00:04]} 38. e4 {[%clk 0:00:44]} 1-0


[Site "https://www.chess.com"]

[Event "Titled Tuesday Blitz June 1 2021"]
[White "Fernandez, Michael"]
[Black "Blomqvist, Erik"]
[WhiteFideId "5803560"]
[BlackFideId "1709437"]
[WhiteElo "2110"]
[BlackElo "2460"]
[Result "0-1"]
[Round "07"]
[TimeControl "180+1"]
[Date "2021.06.01"]
[WhiteClock "0:01:01"]
[BlackClock "0:00:45"]

1. e4 {[%clk 0:02:58]}  c5 {[%clk 0:02:59]} 2. Nf3 {[%clk 0:02:57]}  d6 {[%clk 0:02:59]} 3. d4 {[%clk 0:02:52]}  cxd4 {[%clk 0:03:00]} 4. Qxd4 {[%clk 0:02:51]}  Nc6 {[%clk 0:02:57]} 5. Bb5 {[%clk 0:02:50]}  Bd7 {[%clk 0:02:55]} 6. Bxc6 {[%clk 0:02:49]}  bxc6 {[%clk 0:02:53]} 7. Nc3 {[%clk 0:02:44]}  e5 {[%clk 0:02:48]} 8. Qd3 {[%clk 0:02:44]}  h6 {[%clk 0:02:45]} 9. Be3 {[%clk 0:02:41]}  Nf6 {[%clk 0:02:41]} 10. h3 {[%clk 0:02:36]}  Be7 {[%clk 0:02:30]} 11. O-O {[%clk 0:02:34]}  O-O {[%clk 0:02:28]} 12. Nd2 {[%clk 0:02:20]}  Be6 {[%clk 0:02:26]} 13. f4 {[%clk 0:02:17]}  exf4 {[%clk 0:02:27]} 14. Bxf4 {[%clk 0:02:15]}  Qb8 {[%clk 0:02:05]} 15. Nc4 {[%clk 0:01:48]}  Rd8 {[%clk 0:01:45]} 16. b3 {[%clk 0:01:48]}  Qb4 {[%clk 0:01:39]} 17. Ne3 {[%clk 0:01:42]}  Nd7 {[%clk 0:01:28]} 18. Nf5 {[%clk 0:01:27]}  Bxf5 {[%clk 0:01:23]} 19. exf5 {[%clk 0:01:27]}  Bf6 {[%clk 0:01:07]} 20. Bd2 {[%clk 0:01:12]}  Nc5 {[%clk 0:00:59]} 21. Qf3 {[%clk 0:01:05]}  Qd4+ {[%clk 0:00:46]} 22. Kh1 {[%clk 0:01:01]}  Qxd2 {[%clk 0:00:45]} 0-1


[Site "https://www.chess.com"]

[Event "Titled Tuesday Blitz June 1 2021"]
[White "Fus, Jakub"]
[Black "Chernomordik, Pavel"]
[WhiteFideId "1193023"]
[BlackFideId "2804530"]
[WhiteElo "2138"]
[BlackElo "2299"]
[Result "1/2-1/2"]
[Round "07"]
[TimeControl "180+1"]
[Date "2021.06.01"]
[WhiteClock "0:00:09"]
[BlackClock "0:00:13"]

1. Nf3 {[%clk 0:03:00]}  g6 {[%clk 0:03:00]} 2. g3 {[%clk 0:03:01]}  Bg7 {[%clk 0:02:59]} 3. d4 {[%clk 0:03:01]}  d6 {[%clk 0:02:58]} 4. Bg2 {[%clk 0:03:02]}  Nf6 {[%clk 0:02:54]} 5. O-O {[%clk 0:03:02]}  O-O {[%clk 0:02:53]} 6. c4 {[%clk 0:03:02]}  c6 {[%clk 0:02:52]} 7. Nc3 {[%clk 0:03:03]}  a6 {[%clk 0:02:51]} 8. b3 {[%clk 0:02:40]}  b5 {[%clk 0:02:50]} 9. Bb2 {[%clk 0:02:41]}  bxc4 {[%clk 0:02:49]} 10. bxc4 {[%clk 0:02:41]}  a5 {[%clk 0:02:49]} 11. Qc2 {[%clk 0:02:40]}  Ba6 {[%clk 0:02:49]} 12. Nd2 {[%clk 0:02:37]}  Nfd7 {[%clk 0:02:46]} 13. e3 {[%clk 0:02:36]}  e5 {[%clk 0:02:43]} 14. Nce4 {[%clk 0:02:32]}  d5 {[%clk 0:02:37]} 15. Nc5 {[%clk 0:02:12]}  Nxc5 {[%clk 0:02:34]} 16. dxc5 {[%clk 0:02:13]}  Nd7 {[%clk 0:02:24]} 17. cxd5 {[%clk 0:02:11]}  Bxf1 {[%clk 0:02:22]} 18. Rxf1 {[%clk 0:02:07]}  cxd5 {[%clk 0:02:19]} 19. Bxd5 {[%clk 0:02:08]}  Rc8 {[%clk 0:02:19]} 20. c6 {[%clk 0:02:06]}  Nb6 {[%clk 0:02:13]} 21. Bg2 {[%clk 0:02:05]}  f5 {[%clk 0:02:04]} 22. Rd1 {[%clk 0:02:02]}  Qc7 {[%clk 0:02:00]} 23. Nb3 {[%clk 0:02:00]}  a4 {[%clk 0:01:52]} 24. Nc5 {[%clk 0:02:00]}  e4 {[%clk 0:01:51]} 25. Bxg7 {[%clk 0:01:54]}  Qxg7 {[%clk 0:01:46]} 26. Ne6 {[%clk 0:01:54]}  Qf6 {[%clk 0:01:43]} 27. Nxf8 {[%clk 0:01:52]}  Rxc6 {[%clk 0:01:42]} 28. Nd7 {[%clk 0:01:39]}  Nxd7 {[%clk 0:01:37]} 29. Qxa4 {[%clk 0:01:38]}  Nb6 {[%clk 0:01:29]} 30. Qb3+ {[%clk 0:01:33]}  Kg7 {[%clk 0:01:26]} 31. Bf1 {[%clk 0:01:30]}  Qc3 {[%clk 0:01:18]} 32. Qb5 {[%clk 0:01:23]}  Qc5 {[%clk 0:01:16]} 33. a4 {[%clk 0:01:01]}  Kh6 {[%clk 0:01:05]} 34. a5 {[%clk 0:00:52]}  Qxb5 {[%clk 0:00:59]} 35. Bxb5 {[%clk 0:00:53]}  Rc5 {[%clk 0:00:59]} 36. Rb1 {[%clk 0:00:54]}  Nd5 {[%clk 0:00:56]} 37. a6 {[%clk 0:00:53]}  Nc3 {[%clk 0:00:46]} 38. a7 {[%clk 0:00:52]}  Rc8 {[%clk 0:00:44]} 39. Rb3 {[%clk 0:00:44]}  Nxb5 {[%clk 0:00:28]} 40. Rxb5 {[%clk 0:00:45]}  Rc1+ {[%clk 0:00:28]} 41. Kg2 {[%clk 0:00:44]}  Ra1 {[%clk 0:00:28]} 42. Rb7 {[%clk 0:00:44]}  g5 {[%clk 0:00:24]} 43. h3 {[%clk 0:00:32]}  Kg6 {[%clk 0:00:23]} 44. g4 {[%clk 0:00:32]}  f4 {[%clk 0:00:22]} 45. Re7 {[%clk 0:00:31]}  fxe3 {[%clk 0:00:20]} 46. fxe3 {[%clk 0:00:31]}  Ra2+ {[%clk 0:00:21]} 47. Kg3 {[%clk 0:00:31]}  Ra3 {[%clk 0:00:21]} 48. Rxe4 {[%clk 0:00:28]}  Rxa7 {[%clk 0:00:20]} 49. Re6+ {[%clk 0:00:28]}  Kf7 {[%clk 0:00:19]} 50. Rh6 {[%clk 0:00:25]}  Kg7 {[%clk 0:00:19]} 51. Rb6 {[%clk 0:00:26]}  h6 {[%clk 0:00:18]} 52. Kf3 {[%clk 0:00:22]}  Rf7+ {[%clk 0:00:17]} 53. Ke4 {[%clk 0:00:21]}  Rf1 {[%clk 0:00:16]} 54. Ke5 {[%clk 0:00:19]}  Rf3 {[%clk 0:00:15]} 55. e4 {[%clk 0:00:19]}  Rxh3 {[%clk 0:00:14]} 56. Rb7+ {[%clk 0:00:12]}  Kg6 {[%clk 0:00:14]} 57. Rb6+ {[%clk 0:00:13]}  Kg7 {[%clk 0:00:14]} 58. Rb7+ {[%clk 0:00:09]}  Kg6 {[%clk 0:00:13]} 59. Rb6+ {[%clk 0:00:09]}  Kg7 {[%clk 0:00:13]} 1/2-1/2


[Site "https://www.chess.com"]

[Event "Titled Tuesday Blitz June 1 2021"]
[White "Gormally, Daniel W"]
[Black "Perez Ponsa, Federico"]
[WhiteFideId "406465"]
[BlackFideId "117927"]
[WhiteElo "2543"]
[BlackElo "2672"]
[Result "1/2-1/2"]
[Round "07"]
[TimeControl "180+1"]
[Date "2021.06.01"]
[WhiteClock "0:01:28"]
[BlackClock "0:00:07"]

1. e4 {[%clk 0:02:56]}  c6 {[%clk 0:00:57]} 2. d4 {[%clk 0:02:55]}  d5 {[%clk 0:00:58]} 3. Nd2 {[%clk 0:02:55]}  dxe4 {[%clk 0:00:59]} 4. Nxe4 {[%clk 0:02:56]}  Nf6 {[%clk 0:01:00]} 5. Nxf6+ {[%clk 0:02:54]}  exf6 {[%clk 0:01:01]} 6. Nf3 {[%clk 0:02:55]}  Bd6 {[%clk 0:01:01]} 7. Be2 {[%clk 0:02:55]}  O-O {[%clk 0:01:01]} 8. O-O {[%clk 0:02:56]}  Re8 {[%clk 0:01:02]} 9. c4 {[%clk 0:02:56]}  Nd7 {[%clk 0:01:02]} 10. Be3 {[%clk 0:02:52]}  Nf8 {[%clk 0:01:02]} 11. Re1 {[%clk 0:02:52]}  Bg4 {[%clk 0:01:01]} 12. h3 {[%clk 0:02:52]}  Bf5 {[%clk 0:01:01]} 13. Bd3 {[%clk 0:02:51]}  Be6 {[%clk 0:01:00]} 14. Qb3 {[%clk 0:02:46]}  Qd7 {[%clk 0:01:00]} 15. Rad1 {[%clk 0:02:38]}  Bxh3 {[%clk 0:00:56]} 16. gxh3 {[%clk 0:02:30]}  Qxh3 {[%clk 0:00:57]} 17. Bc1 {[%clk 0:02:26]}  Ng6 {[%clk 0:00:45]} 18. Bxg6 {[%clk 0:02:20]}  hxg6 {[%clk 0:00:41]} 19. Re3 {[%clk 0:02:20]}  Rxe3 {[%clk 0:00:33]} 20. Qxe3 {[%clk 0:02:19]}  g5 {[%clk 0:00:33]} 21. Rd3 {[%clk 0:01:28]}  g4 {[%clk 0:00:21]} 22. Nd2 {[%clk 0:01:28]}  Bh2+ {[%clk 0:00:14]} 23. Kh1 {[%clk 0:01:28]}  Bg3+ {[%clk 0:00:11]} 24. Kg1 {[%clk 0:01:27]}  Bh2+ {[%clk 0:00:09]} 25. Kh1 {[%clk 0:01:28]}  Bg3+ {[%clk 0:00:06]} 26. Kg1 {[%clk 0:01:28]}  Bh2+ {[%clk 0:00:07]} 1/2-1/2


[Site "https://www.chess.com"]

[Event "Titled Tuesday Blitz June 1 2021"]
[White "Goryachkina, Aleksandra"]
[Black "Torkkola, Henri"]
[WhiteFideId "4147103"]
[BlackFideId "507660"]
[WhiteElo "2441"]
[BlackElo "2137"]
[Result "1-0"]
[Round "07"]
[TimeControl "180+1"]
[Date "2021.06.01"]
[WhiteClock "0:00:16"]
[BlackClock "0:00:02"]

1. e4 {[%clk 0:02:59]}  d6 {[%clk 0:03:00]} 2. d4 {[%clk 0:02:59]}  Nf6 {[%clk 0:03:01]} 3. Nc3 {[%clk 0:02:58]}  e5 {[%clk 0:03:01]} 4. Nf3 {[%clk 0:02:58]}  Nbd7 {[%clk 0:03:01]} 5. Bc4 {[%clk 0:02:57]}  Be7 {[%clk 0:03:02]} 6. O-O {[%clk 0:02:57]}  O-O {[%clk 0:03:02]} 7. a4 {[%clk 0:02:57]}  exd4 {[%clk 0:03:02]} 8. Nxd4 {[%clk 0:02:55]}  Ne5 {[%clk 0:03:02]} 9. Ba2 {[%clk 0:02:55]}  Nc6 {[%clk 0:03:02]} 10. h3 {[%clk 0:02:33]}  Nb4 {[%clk 0:03:02]} 11. Bb3 {[%clk 0:02:32]}  c5 {[%clk 0:02:58]} 12. Nf3 {[%clk 0:02:27]}  Be6 {[%clk 0:02:47]} 13. Bxe6 {[%clk 0:02:13]}  fxe6 {[%clk 0:02:47]} 14. Bd2 {[%clk 0:01:41]}  d5 {[%clk 0:02:47]} 15. exd5 {[%clk 0:01:24]}  exd5 {[%clk 0:02:47]} 16. Ne2 {[%clk 0:01:20]}  Nc6 {[%clk 0:02:40]} 17. Ng3 {[%clk 0:01:18]}  Ne4 {[%clk 0:02:34]} 18. Re1 {[%clk 0:01:12]}  Nxg3 {[%clk 0:02:29]} 19. fxg3 {[%clk 0:01:13]}  Bd6 {[%clk 0:02:27]} 20. Bg5 {[%clk 0:01:12]}  Qc7 {[%clk 0:02:12]} 21. Qxd5+ {[%clk 0:01:11]}  Kh8 {[%clk 0:02:13]} 22. g4 {[%clk 0:01:07]}  Rxf3 {[%clk 0:01:39]} 23. Qxf3 {[%clk 0:01:00]}  Rf8 {[%clk 0:01:38]} 24. Qd5 {[%clk 0:00:49]}  Bh2+ {[%clk 0:01:21]} 25. Kh1 {[%clk 0:00:49]}  Nd4 {[%clk 0:01:17]} 26. Rf1 {[%clk 0:00:43]}  Rg8 {[%clk 0:00:40]} 27. Rae1 {[%clk 0:00:39]}  h6 {[%clk 0:00:35]} 28. Bh4 {[%clk 0:00:28]}  Nxc2 {[%clk 0:00:28]} 29. Re7 {[%clk 0:00:27]}  Qb8 {[%clk 0:00:19]} 30. Rxb7 {[%clk 0:00:26]}  Qc8 {[%clk 0:00:07]} 31. Re7 {[%clk 0:00:20]}  Bb8 {[%clk 0:00:03]} 32. Qe4 {[%clk 0:00:17]}  Nd4 {[%clk 0:00:02]} 33. Bf6 {[%clk 0:00:16]} 1-0


[Site "https://www.chess.com"]